bitfinex-derivatives/quotes_BTCF0:USTF0_20241025
["timestamp","ask_amount","ask_price","bid_price","bid_amount"]
[1729864727004,0.00240001,68439.0,68426.0,0.073111]
[1729864727204,0.00240001,68439.0,68430.0,0.073107]
[1729864727399,0.00240001,68439.0,68430.0,1.32220933]
[1729864727600,0.00240001,68439.0,68430.0,1.54099079]
[1729864727800,0.00240001,68439.0,68430.0,1.68423079]
[1729864728216,0.00240001,68439.0,68437.0,0.0731]
[1729864728417,0.3608,68459.0,68437.0,0.0731]
[1729864728418,0.21070233,68462.0,68446.0,0.21070233]
[1729864728716,0.002,68466.0,68444.0,0.3608]
[1729864728717,0.21070233,68450.0,68444.0,0.3608]
[1729864728897,0.073099,68438.0,68437.0,0.00156]
[1729864729105,0.3608,68446.0,68432.0,0.3608]
[1729864729106,0.073103,68435.0,68432.0,0.3608]
[1729864729310,0.21070233,68447.0,68434.0,0.3608]
[1729864729510,0.0731,68437.0,68434.0,0.3608]
[1729864729896,0.073097,68440.0,68434.0,0.3608]
[1729864730203,0.073097,68439.0,68434.0,0.3608]
[1729864730398,0.073099,68438.0,68434.0,0.3608]
[1729864730607,0.073101,68436.0,68434.0,0.3608]
[1729864730807,0.13939,68446.0,68435.0,0.073102]
[1729864731004,0.073091,68445.0,68444.0,0.3608]
[1729864731218,0.0663,68446.0,68434.0,0.3608]
[1729864731219,0.073096,68441.0,68434.0,0.3608]
[1729864731516,0.073096,68441.0,68434.0,0.433902]
[1729864731713,0.073098,68439.0,68434.0,0.3608]
[1729864731905,0.073101,68436.0,68434.0,0.3608]
[1729864732212,0.0663,68446.0,68434.0,0.3608]
[1729864732213,0.073102,68435.0,68434.0,0.3608]
[1729864733205,0.073099,68438.0,68434.0,0.3608]
[1729864733699,0.073099,68438.0,68434.0,0.08280718]
[1729864734302,0.3608,68442.0,68434.0,0.08280718]
[1729864734612,0.0663,68446.0,68435.0,0.073101]
[1729864734613,0.073097,68440.0,68435.0,0.073101]
[1729864734808,0.0663,68446.0,68435.0,0.073101]
[1729864735015,0.073098,68439.0,68435.0,0.073101]
[1729864735216,0.073098,68439.0,68434.0,0.08280718]
[1729864735217,0.073098,68439.0,68436.0,0.073101]
[1729864735604,0.073099,68438.0,68436.0,0.073101]
[1729864735799,0.0663,68446.0,68436.0,0.073101]
[1729864736014,0.0663,68446.0,68434.0,0.08280718]
[1729864736015,0.073089,68447.0,68443.0,0.3608]
[1729864736309,0.073089,68448.0,68444.0,0.073091]
[1729864736511,0.073089,68448.0,68445.0,0.07309]
[1729864736709,0.07309,68446.0,68445.0,0.07309]
[1729864737317,0.073082,68454.0,68450.0,0.073085]
[1729864737504,0.2042,68459.0,68449.0,0.3608]
[1729864737709,0.073084,68452.0,68450.0,0.073086]
[1729864738110,0.21070233,68458.0,68449.0,0.3608]
[1729864738111,0.07308,68456.0,68451.0,0.073084]
[1729864738309,0.073081,68455.0,68451.0,0.073084]
[1729864739017,0.073081,68455.0,68449.0,0.3608]
[1729864739018,0.073081,68455.0,68453.0,0.073082]
[1729864739513,0.2042,68459.0,68449.0,0.3608]
[1729864739711,0.073081,68455.0,68449.0,0.3608]
[1729864739910,0.2042,68459.0,68450.0,0.21985796]
[1729864740131,0.073078,68458.0,68454.0,0.073081]
[1729864740311,0.2042,68459.0,68450.0,0.21985796]
[1729864740510,0.00240001,68460.0,68457.0,0.21070233]
[1729864740703,0.00240001,68460.0,68459.0,0.073076]
[1729864741112,0.05547201,68463.0,68457.0,0.21070233]
[1729864741312,0.05547201,68463.0,68462.0,0.073073]
[1729864741818,0.004,68467.0,68464.0,0.073071]
[1729864741819,0.075069,68466.0,68464.0,0.073071]
[1729864742118,0.002,68466.0,68464.0,0.073071]
[1729864742516,0.002,68466.0,68464.0,0.511271]
[1729864745216,0.002,68466.0,68464.0,0.073071]
[1729864745411,0.075069,68466.0,68461.0,0.21070233]
[1729864745919,0.002,68466.0,68463.0,0.073072]
[1729864746315,0.002,68466.0,68463.0,0.511272]
[1729864746515,0.002,68466.0,68464.0,0.65762505]
[1729864748423,0.055058,68477.0,68464.0,0.21942505]
[1729864748624,0.055058,68477.0,68473.0,0.21070233]
[1729864749420,0.055058,68477.0,68474.0,0.07306]
[1729864750323,0.055058,68477.0,68473.0,0.21070233]
[1729864750324,0.055058,68477.0,68473.0,0.17786233]
[1729864750622,0.431,68482.0,68458.0,0.21070233]
[1729864750623,0.57150233,68474.0,68458.0,0.21070233]
[1729864750815,0.3608,68466.0,68455.0,0.3608]
[1729864751022,0.073081,68455.0,68453.0,0.21070233]
[1729864751720,0.073081,68455.0,68453.0,0.57150233]
[1729864751924,0.3608,68459.0,68449.0,0.21070233]
[1729864752125,0.57150233,68459.0,68448.0,0.2128936]
[1729864752320,0.3608,68452.0,68441.0,0.21070233]
[1729864752620,0.3608,68445.0,68441.0,0.21070233]
[1729864752920,0.073094,68442.0,68441.0,0.21070233]
[1729864753127,0.073097,68440.0,68437.0,0.21070233]
[1729864753322,0.3608,68452.0,68437.0,0.21070233]
[1729864753620,0.073094,68442.0,68441.0,0.21070233]
[1729864755630,0.1337,68451.0,68443.0,0.073092]
[1729864755631,0.07309,68446.0,68443.0,0.073092]
[1729864755921,0.07309,68446.0,68445.0,0.21070233]
[1729864756528,0.07309,68446.0,68444.0,0.073092]
[1729864756825,0.07309,68446.0,68445.0,0.073091]
[1729864757030,0.07309,68446.0,68441.0,0.21226233]
[1729864757326,0.0649,68450.0,68441.0,0.21226233]
[1729864757327,0.073091,68445.0,68441.0,0.28379633]
[1729864757824,0.073087,68449.0,68441.0,0.073094]
[1729864758029,0.27560233,68450.0,68437.0,0.21070233]
[1729864758325,0.21070233,68440.0,68435.0,0.3608]
[1729864758624,0.21070233,68440.0,68426.0,0.21289442]
[1729864758625,0.21070233,68436.0,68429.0,0.073108]
[1729864758828,0.57150233,68431.0,68426.0,0.00219209]
[1729864759128,0.07311,68427.0,68426.0,0.00219209]
[1729864759426,0.07311,68427.0,68418.0,0.04317047]
[1729864759427,0.21070233,68427.0,68418.0,0.04317047]
[1729864759729,0.073119,68419.0,68418.0,0.04317047]
[1729864759926,0.073119,68419.0,68418.0,0.11629047]
[1729864760323,0.07312,68418.0,68413.0,0.073125]
[1729864760525,0.3608,68425.0,68411.0,0.21070233]
[1729864760718,0.3608,68425.0,68420.0,0.073117]
[1729864761230,0.3608,68425.0,68415.0,0.57314233]
[1729864761426,0.073122,68416.0,68415.0,0.433923]
[1729864761626,0.073117,68421.0,68415.0,0.3608]
[1729864761931,0.3608,68425.0,68420.0,0.21070233]
[1729864762734,0.1365,68430.0,68429.0,0.073108]
[1729864762930,0.3608,68437.0,68429.0,0.57150233]
[1729864763124,0.3608,68437.0,68435.0,0.073101]
[1729864763423,0.0686,68440.0,68439.0,0.073097]
[1729864763630,0.0686,68440.0,68439.0,0.28379933]
[1729864764132,0.0686,68440.0,68439.0,0.073097]
[1729864765031,0.073102,68436.0,68435.0,0.073101]
[1729864766031,0.0686,68440.0,68435.0,0.3608]
[1729864766228,0.0731,68438.0,68437.0,0.0731]
[1729864767032,0.0686,68440.0,68435.0,0.3608]
[1729864767334,0.073098,68439.0,68435.0,0.3608]
[1729864767633,0.0686,68440.0,68435.0,0.3608]
[1729864767824,0.0686,68440.0,68436.0,0.04325844]
[1729864768030,0.0686,68440.0,68435.0,0.40405844]
[1729864768230,0.0686,68440.0,68439.0,0.073097]
[1729864768432,0.0686,68440.0,68435.0,0.40405844]
[1729864768633,0.073101,68436.0,68432.0,0.04325844]
[1729864768933,0.073103,68434.0,68433.0,0.073103]
[1729864769931,0.073107,68430.0,68429.0,0.3608]
[1729864770131,0.073107,68431.0,68424.0,0.04325844]
[1729864770327,0.073108,68429.0,68428.0,0.073109]
[1729864770837,0.57150233,68436.0,68424.0,0.21070233]
[1729864771037,0.073112,68426.0,68424.0,0.073113]
[1729864771428,0.0672,68425.0,68424.0,0.073113]
[1729864771627,0.073114,68424.0,68414.0,0.22716311]
[1729864771826,0.073114,68424.0,68421.0,0.073116]
[1729864772026,0.0645,68423.0,68422.0,0.073116]
[1729864772228,0.137615,68423.0,68422.0,0.073116]
[1729864772431,0.0645,68423.0,68417.0,0.073121]
[1729864772826,0.073118,68420.0,68418.0,0.43392]
[1729864773326,0.073122,68417.0,68414.0,0.21070233]
[1729864773527,0.073122,68417.0,68399.0,0.3608]
[1729864773528,0.57150233,68416.0,68399.0,0.3608]
[1729864773731,0.073136,68403.0,68400.0,0.073139]
[1729864773929,0.3608,68407.0,68399.0,0.57150233]
[1729864774130,0.073137,68402.0,68399.0,0.57150233]
[1729864774535,0.3608,68407.0,68399.0,0.57150233]
[1729864774536,0.1329,68406.0,68399.0,0.57150233]
[1729864774931,0.3608,68416.0,68403.0,0.21070233]
[1729864775127,0.3608,68416.0,68407.0,0.21070233]
[1729864775336,0.43393,68409.0,68403.0,0.073136]
[1729864775529,0.43393,68409.0,68405.0,0.073133]
[1729864776044,0.073131,68408.0,68405.0,0.073133]
[1729864776234,0.3608,68409.0,68406.0,0.21070233]
[1729864776436,0.3608,68409.0,68407.0,0.073131]
[1729864776628,0.3608,68416.0,68414.0,0.073124]
[1729864776835,0.3608,68416.0,68415.0,0.21070233]
[1729864777628,0.433922,68416.0,68415.0,0.21070233]
[1729864777828,0.433922,68416.0,68414.0,0.073124]
[1729864778138,0.3608,68416.0,68400.0,0.21070233]
[1729864778335,0.073133,68406.0,68400.0,0.21070233]
[1729864778536,0.073133,68406.0,68403.0,0.073136]
[1729864778744,0.073133,68406.0,68404.0,0.073135]
[1729864778935,0.073127,68411.0,68404.0,0.073135]
[1729864779238,0.3608,68416.0,68404.0,0.073135]
[1729864779239,0.073133,68406.0,68404.0,0.073135]
[1729864779440,0.073134,68405.0,68400.0,0.21070233]
[1729864779639,0.073134,68405.0,68400.0,0.28384133]
[1729864779936,0.073134,68405.0,68403.0,0.073136]
[1729864780145,0.073135,68404.0,68400.0,0.21070233]
[1729864780331,0.073135,68404.0,68401.0,0.073137]
[1729864782037,0.073137,68402.0,68401.0,0.073137]
[1729864783343,0.07314,68399.0,68398.0,0.3608]
[1729864783542,0.21070233,68402.0,68390.0,0.3624]
[1729864783837,0.073147,68393.0,68390.0,0.3608]
[1729864784240,0.0686,68401.0,68392.0,0.21070233]
[1729864784442,0.073132,68407.0,68404.0,0.073134]
[1729864784645,0.0697,68408.0,68406.0,0.073133]
[1729864785346,0.0697,68408.0,68407.0,0.073132]
[1729864786639,0.0697,68408.0,68400.0,0.21070233]
[1729864786838,0.0697,68408.0,68400.0,0.073139]
[1729864787249,0.073132,68407.0,68400.0,0.073139]
[1729864787544,0.0697,68408.0,68400.0,0.073139]
[1729864787743,0.57150233,68401.0,68396.0,0.3608]
[1729864788047,0.0697,68408.0,68400.0,0.21070233]
[1729864788545,0.3608,68409.0,68407.0,0.073132]
[1729864788741,0.3608,68409.0,68408.0,0.073131]
[1729864788742,0.433931,68409.0,68408.0,0.073131]
[1729864789343,0.073131,68409.0,68408.0,0.073131]
[1729864790241,1.01006233,68409.0,68407.0,0.04325844]
[1729864790445,0.073135,68404.0,68403.0,0.04325844]
[1729864790741,0.21070233,68408.0,68399.0,0.04325844]
[1729864790946,0.07314,68399.0,68398.0,0.04325844]
[1729864791547,0.21070233,68399.0,68391.0,0.04325844]
[1729864791746,0.073148,68392.0,68391.0,0.11651346]
[1729864792255,0.21070233,68394.0,68389.0,0.04336446]
[1729864792543,0.073152,68388.0,68387.0,0.3608]
[1729864793136,0.21070233,68389.0,68385.0,0.04336478]
[1729864793340,0.21070233,68389.0,68382.0,0.073158]
[1729864793544,0.073156,68385.0,68382.0,0.073158]
[1729864793751,0.21070233,68389.0,68382.0,0.073158]
[1729864794051,0.21070233,68389.0,68375.0,0.4305]
[1729864794052,0.21070233,68384.0,68375.0,0.3608]
[1729864794342,0.3608,68383.0,68370.0,0.21070233]
[1729864794648,0.073163,68378.0,68370.0,0.21070233]
[1729864795043,0.073159,68382.0,68379.0,0.073161]
[1729864795237,0.073161,68380.0,68379.0,0.073161]
[1729864795945,0.3608,68383.0,68375.0,0.073165]
[1729864796154,0.073151,68389.0,68369.0,0.37790869]
[1729864796155,0.3608,68378.0,68369.0,0.37790869]
[1729864796352,0.07317,68373.0,68372.0,0.073168]
[1729864796551,0.3608,68378.0,68369.0,0.3608]
[1729864796853,0.3608,68378.0,68369.0,0.433971]
[1729864796854,0.073171,68370.0,68369.0,0.433971]
[1729864797847,0.3608,68378.0,68369.0,0.3608]
[1729864798050,0.073166,68376.0,68375.0,0.073165]
[1729864798750,0.3608,68385.0,68373.0,0.21070233]
[1729864798941,0.3608,68385.0,68370.0,0.203]
[1729864799137,0.073162,68379.0,68378.0,0.073161]
[1729864799451,0.073162,68379.0,68370.0,0.203]
[1729864799452,0.073157,68383.0,68381.0,0.073159]
[1729864799649,0.3608,68385.0,68381.0,0.073159]
[1729864799848,0.139258,68382.0,68381.0,0.073159]
[1729864800543,0.3608,68392.0,68378.0,0.21070233]
[1729864800852,0.4288,68401.0,68378.0,0.21070233]
[1729864800853,0.141141,68399.0,68391.0,0.21070233]
[1729864801150,0.141141,68399.0,68386.0,0.3608]
[1729864801151,0.073147,68393.0,68387.0,0.0696]
[1729864801352,0.068,68399.0,68387.0,0.0696]
[1729864801653,0.068,68399.0,68395.0,0.073144]
[1729864801654,0.073143,68396.0,68395.0,0.073144]
[1729864801950,0.3608,68401.0,68387.0,0.0696]
[1729864801951,0.3608,68401.0,68391.0,0.21070233]
[1729864802141,0.3608,68401.0,68390.0,0.3608]
[1729864802142,0.3608,68401.0,68400.0,0.28384133]
[1729864802346,0.3608,68401.0,68390.0,0.3608]
[1729864802543,0.073149,68391.0,68390.0,0.3608]
[1729864802746,0.21070233,68394.0,68383.0,0.3608]
[1729864802747,0.3608,68393.0,68383.0,0.3608]
[1729864802947,0.3608,68393.0,68383.0,0.433957]
[1729864802948,0.073156,68384.0,68383.0,0.433957]
[1729864803149,0.073156,68384.0,68383.0,0.3608]
[1729864803346,0.21070233,68385.0,68370.0,0.40580478]
[1729864803549,0.07317,68373.0,68372.0,0.073169]
[1729864804343,0.073164,68377.0,68376.0,0.073162]
[1729864804657,0.3608,68393.0,68376.0,0.57150233]
[1729864804852,0.3608,68393.0,68391.0,0.21070233]
[1729864805158,0.433947,68393.0,68392.0,0.073148]
[1729864805547,0.3608,68393.0,68392.0,0.073148]
[1729864806254,0.43394,68399.0,68398.0,0.073141]
[1729864806444,0.3608,68399.0,68398.0,0.073141]
[1729864806754,0.073135,68404.0,68403.0,0.073135]
[1729864806946,0.068,68407.0,68406.0,0.073133]
[1729864807147,0.073134,68406.0,68401.0,0.21070233]
[1729864807348,0.073134,68406.0,68405.0,0.073133]
[1729864807549,0.073145,68395.0,68391.0,0.04336478]
[1729864807743,0.21070233,68393.0,68389.0,0.073151]
[1729864808254,0.21070233,68393.0,68383.0,0.3608]
[1729864808255,0.073152,68389.0,68388.0,0.073151]
[1729864808455,0.073152,68389.0,68383.0,0.3608]
[1729864808456,0.3608,68389.0,68383.0,0.3608]
[1729864808656,0.073156,68384.0,68383.0,0.433957]
[1729864809153,0.3608,68389.0,68388.0,0.073152]
[1729864809154,0.433951,68389.0,68388.0,0.073152]
[1729864810655,0.3608,68389.0,68388.0,0.073152]
[1729864810853,0.14507902,68438.0,68388.0,0.073152]
[1729864810854,0.073142,68397.0,68395.0,0.073144]
[1729864811052,0.073142,68397.0,68396.0,0.073143]
[1729864811758,0.073142,68397.0,68395.0,0.21070233]
[1729864811759,0.073139,68400.0,68399.0,0.07314]
[1729864812149,0.073132,68407.0,68406.0,0.073133]
[1729864812349,0.3608,68417.0,68406.0,0.21070233]
[1729864812552,0.073132,68407.0,68406.0,0.073132]
[1729864813458,0.21070233,68418.0,68402.0,0.3608]
[1729864813850,0.073133,68406.0,68405.0,0.073134]
[1729864814648,0.073124,68414.0,68402.0,0.3608]
[1729864814852,0.3608,68425.0,68420.0,0.073114]
[1729864815178,0.073112,68425.0,68424.0,0.28381533]
[1729864815359,0.0651,68432.0,68424.0,0.21070233]
[1729864815567,0.073111,68428.0,68427.0,0.073109]
[1729864816059,0.073112,68425.0,68424.0,0.21070233]
[1729864816852,0.073096,68441.0,68440.0,0.073096]
[1729864817054,0.3608,68450.0,68424.0,0.64914233]
[1729864817055,0.43389,68446.0,68443.0,0.073093]
[1729864817253,0.43389,68446.0,68444.0,0.21070233]
[1729864817453,0.43389,68446.0,68445.0,0.073091]
[1729864817654,0.07309,68446.0,68445.0,0.073091]
[1729864818154,0.0651,68449.0,68448.0,0.073088]
[1729864818464,0.0651,68449.0,68444.0,0.3608]
[1729864818465,0.3608,68460.0,68444.0,0.3608]
[1729864818761,0.073089,68447.0,68446.0,0.3608]
[1729864819253,0.3608,68447.0,68434.0,0.3608]
[1729864819452,0.073099,68438.0,68437.0,0.073099]
[1729864819952,0.073101,68436.0,68434.0,0.3608]
[1729864820253,0.073075,68460.0,68456.0,0.073079]
[1729864820453,0.3608,68462.0,68455.0,0.3608]
[1729864820652,0.3608,68462.0,68460.0,0.073075]
[1729864821049,0.073076,68460.0,68455.0,0.43388]
[1729864821364,0.073079,68456.0,68455.0,0.07308]
[1729864822755,0.3608,68462.0,68447.0,0.6855692]
[1729864823055,0.073078,68458.0,68447.0,0.6855692]
[1729864823255,0.3608,68462.0,68447.0,0.6855692]
[1729864823256,0.3608,68462.0,68453.0,0.073082]
[1729864823558,0.3608,68462.0,68447.0,0.6855692]
[1729864823559,0.073079,68456.0,68447.0,0.6855692]
[1729864823963,0.073079,68456.0,68455.0,0.07308]
[1729864825265,0.3608,68462.0,68447.0,0.6855692]
[1729864825559,0.3608,68462.0,68447.0,0.3608]
[1729864825759,0.073088,68448.0,68447.0,0.3608]
[1729864826155,0.6855692,68450.0,68441.0,0.073095]
[1729864826459,0.6855692,68450.0,68433.0,0.00219164]
[1729864826460,0.433895,68442.0,68433.0,0.00219164]
[1729864826660,0.433895,68442.0,68440.0,0.073096]
[1729864826661,0.073095,68441.0,68440.0,0.073096]
[1729864827360,0.073091,68446.0,68433.0,0.32696084]
[1729864827556,0.0675,68449.0,68433.0,0.32696084]
[1729864827752,0.073092,68445.0,68433.0,0.32696084]
[1729864828165,0.3608,68450.0,68433.0,0.32696084]
[1729864828351,0.00084,68456.0,68450.0,0.073086]
[1729864828659,0.0695,68460.0,68455.0,0.3608]
[1729864829258,0.3247692,68457.0,68449.0,0.3608]
[1729864829451,0.6855692,68451.0,68439.0,0.3608]
[1729864829659,0.073095,68441.0,68440.0,0.073095]
[1729864829861,0.073095,68441.0,68439.0,0.3608]
[1729864829862,0.073096,68440.0,68439.0,0.3608]
[1729864830059,0.073103,68434.0,68433.0,0.00219164]
[1729864830268,0.073103,68434.0,68433.0,0.07529564]
[1729864830865,0.073101,68437.0,68436.0,0.073101]
[1729864831056,0.3608,68438.0,68433.0,0.00219164]
[1729864831057,0.073103,68434.0,68433.0,0.00219164]
[1729864831561,0.073103,68434.0,68433.0,0.07529564]
[1729864832256,0.073103,68434.0,68433.0,0.00219164]
[1729864833552,1.5071292,68434.0,68402.0,0.3608]
[1729864833760,0.3247692,68414.0,68402.0,0.3608]
[1729864833955,0.3608,68418.0,68407.0,0.3247692]
[1729864834357,0.073125,68414.0,68411.0,0.073127]
[1729864834567,0.073126,68413.0,68407.0,0.3247692]
[1729864834761,0.073126,68413.0,68412.0,0.073126]
[1729864834956,0.073123,68415.0,68408.0,0.07313]
[1729864835160,0.073123,68415.0,68407.0,0.3247692]
[1729864835360,0.05,76750.0,68399.0,0.43562]
[1729864835361,0.073104,68434.0,68426.0,0.073111]
[1729864835557,0.0688,68433.0,68426.0,1.1194802]
[1729864836457,0.0688,68433.0,68426.0,0.794711]
[1729864836652,0.3608,68431.0,68420.0,0.433918]
[1729864836856,0.3608,68431.0,68414.0,0.37795489]
[1729864837057,0.3608,68431.0,68421.0,0.073116]
[1729864837465,0.3608,68431.0,68414.0,0.3608]
[1729864837466,0.3247692,68429.0,68414.0,0.3608]
[1729864837672,0.073122,68416.0,68415.0,0.073123]
[1729864837866,0.073118,68421.0,68414.0,0.3608]
[1729864838067,0.3608,68431.0,68418.0,0.07312]
[1729864838267,0.073123,68415.0,68414.0,0.3608]
[1729864838467,0.3978922,68415.0,68414.0,0.3608]
[1729864838670,0.073131,68408.0,68407.0,0.3608]
[1729864838866,0.073138,68401.0,68400.0,0.3608]
[1729864839671,0.073132,68407.0,68404.0,0.073134]
[1729864840179,0.073134,68405.0,68404.0,0.073134]
[1729864840381,0.3608,68412.0,68400.0,0.6871292]
[1729864840683,0.07313,68409.0,68400.0,0.6871292]
[1729864840868,0.07313,68409.0,68407.0,0.073132]
[1729864841480,0.073122,68416.0,68412.0,0.073126]
[1729864841679,0.4904,68421.0,68412.0,0.073126]
[1729864841880,0.064,68420.0,68412.0,0.073126]
[1729864842281,0.064,68420.0,68411.0,0.073127]
[1729864842282,0.073124,68415.0,68411.0,0.073127]
[1729864842476,0.073124,68414.0,68406.0,0.6855692]
[1729864842676,0.073127,68412.0,68406.0,0.6855692]
[1729864843075,0.073121,68417.0,68406.0,0.6855692]
[1729864843281,0.064,68420.0,68414.0,0.3608]
[1729864843474,0.073121,68418.0,68417.0,0.07312]
[1729864844182,0.073123,68415.0,68414.0,0.3608]
[1729864844395,0.073129,68410.0,68408.0,0.07313]
[1729864844683,0.6855692,68415.0,68406.0,0.3608]
[1729864844874,0.073139,68401.0,68400.0,0.073139]
[1729864845078,0.3608,68409.0,68398.0,0.3608]
[1729864845079,0.07314,68399.0,68398.0,0.3608]
[1729864845484,0.3608,68402.0,68393.0,0.00219315]
[1729864845692,0.3608,68402.0,68396.0,0.073143]
[1729864845892,0.073142,68397.0,68396.0,0.073143]
[1729864846086,0.073145,68395.0,68393.0,0.00219315]
[1729864846286,0.1343,68401.0,68393.0,0.00219315]
[1729864846486,0.073146,68394.0,68393.0,0.00219315]
[1729864847796,0.073146,68394.0,68390.0,0.3608]
[1729864847988,0.07314,68399.0,68390.0,0.433949]
[1729864848192,0.0666,68400.0,68391.0,0.073148]
[1729864848193,0.073145,68395.0,68391.0,0.073148]
[1729864848390,0.073141,68399.0,68390.0,0.3608]
[1729864848590,0.0666,68400.0,68397.0,0.3608]
[1729864848796,0.073144,68396.0,68391.0,0.3608]
[1729864849100,0.1343,68401.0,68397.0,0.073142]
[1729864849396,0.3247692,68412.0,68397.0,0.3608]
[1729864849696,0.6855692,68407.0,68397.0,0.3608]
[1729864849996,0.6855692,68407.0,68391.0,0.3608]
[1729864849997,0.073143,68397.0,68394.0,0.073145]
[1729864850299,0.073133,68406.0,68394.0,0.073145]
[1729864850491,0.0632,68405.0,68394.0,0.073145]
[1729864850691,0.3608,68401.0,68391.0,0.3608]
[1729864850887,0.0683,68400.0,68391.0,0.433949]
[1729864851090,0.073148,68392.0,68391.0,0.3608]
[1729864851703,0.073148,68392.0,68382.0,0.433958]
[1729864851704,0.073157,68383.0,68382.0,0.433958]
[1729864852195,0.073157,68383.0,68382.0,0.3608]
[1729864852388,0.3608,68395.0,68382.0,0.3608]
[1729864852591,0.3247692,68390.0,68382.0,0.3608]
[1729864852798,0.073165,68377.0,68370.0,0.3608]
[1729864853095,0.073166,68375.0,68374.0,0.073167]
[1729864853302,0.073169,68372.0,68370.0,0.3608]
[1729864853597,0.07317,68371.0,68370.0,0.433971]
[1729864853799,0.073177,68365.0,68364.0,0.00219407]
[1729864854896,0.073177,68365.0,68356.0,0.3608]
[1729864854897,0.073185,68357.0,68356.0,0.3608]
[1729864855208,0.07319,68352.0,68351.0,0.073191]
[1729864855498,0.073192,68351.0,68350.0,0.3608]
[1729864855997,0.073196,68347.0,68345.0,0.073198]
[1729864856297,0.3247692,68352.0,68342.0,0.3608]
[1729864856496,0.0732,68343.0,68342.0,0.3608]
[1729864856996,0.073202,68341.0,68340.0,0.00219485]
[1729864857398,0.3608,68348.0,68340.0,0.00219485]
[1729864857696,0.073198,68345.0,68343.0,0.0732]
[1729864857899,0.14088,68352.0,68345.0,0.073197]
[1729864858099,0.073196,68348.0,68340.0,0.00219485]
[1729864858293,0.0631,68354.0,68340.0,0.00219485]
[1729864858493,0.3247692,68346.0,68340.0,0.00219485]
[1729864858689,0.073202,68341.0,68340.0,0.00219485]
[1729864859094,0.3608,68355.0,68349.0,0.073194]
[1729864859307,0.073193,68350.0,68349.0,0.073194]
[1729864859508,0.3608,68355.0,68345.0,0.3608]
[1729864859801,0.073196,68348.0,68345.0,0.433998]
[1729864859996,0.3608,68355.0,68345.0,0.3608]
[1729864860300,0.3608,68355.0,68340.0,0.07199485]
[1729864860502,0.3608,68355.0,68340.0,0.00219485]
[1729864860801,0.3247692,68345.0,68340.0,0.00219485]
[1729864861105,0.073202,68341.0,68340.0,0.00219485]
[1729864861402,0.073202,68341.0,68339.0,0.3608]
[1729864861598,0.073203,68340.0,68339.0,0.3608]
[1729864862509,0.3608,68349.0,68339.0,0.3608]
[1729864862707,0.3247692,68356.0,68332.0,0.3608]
[1729864862708,0.3247692,68356.0,68338.0,0.6855692]
[1729864863005,0.073198,68345.0,68342.0,0.073201]
[1729864863312,0.3247692,68350.0,68338.0,0.3608]
[1729864863608,0.073204,68339.0,68338.0,0.3608]
[1729864863910,0.3247692,68343.0,68323.0,0.3608]
[1729864863911,0.3608,68342.0,68323.0,0.3608]
[1729864864101,0.07322,68324.0,68323.0,0.3608]
[1729864864407,0.3979892,68324.0,68323.0,0.3608]
[1729864865096,0.3247692,68324.0,68313.0,0.3608]
[1729864865295,0.073225,68320.0,68318.0,0.073227]
[1729864865609,0.073229,68316.0,68314.0,0.073231]
[1729864866000,0.073231,68314.0,68309.0,0.3608]
[1729864866209,0.3247692,68317.0,68309.0,0.3608]
[1729864866210,0.3247692,68312.0,68309.0,0.3608]
[1729864866400,0.3608,68317.0,68310.0,0.07543079]
[1729864866401,0.07323,68316.0,68310.0,0.07543079]
[1729864866705,0.073236,68310.0,68306.0,0.07324]
[1729864867017,0.3247692,68307.0,68299.0,0.3608]
[1729864867195,0.574988,68317.0,68299.0,0.3608]
[1729864867196,0.3980152,68300.0,68299.0,0.3608]
[1729864867702,0.073255,68292.0,68291.0,0.3608]
[1729864868009,0.3247692,68292.0,68279.0,0.07546557]
[1729864868209,0.3980372,68281.0,68279.0,0.00219657]
[1729864868395,0.073268,68280.0,68278.0,0.434069]
[1729864868599,0.073269,68279.0,68278.0,0.3608]
[1729864868999,0.073269,68279.0,68270.0,0.3608]
[1729864869000,0.80016,68279.0,68270.0,0.3608]
[1729864869211,0.3247692,68271.0,68270.0,0.3608]
[1729864869600,0.8374862,68271.0,68270.0,0.3608]
[1729864869803,0.7642092,68271.0,68257.0,0.073292]
[1729864870000,0.6855692,68263.0,68257.0,0.073292]
[1729864870202,0.6855692,68263.0,68253.0,0.3608]
[1729864870203,0.073288,68261.0,68253.0,0.3608]
[1729864870408,0.6855692,68263.0,68252.0,0.073298]
[1729864870409,0.3247692,68254.0,68252.0,0.073298]
[1729864870604,0.3247692,68254.0,68247.0,0.073303]
[1729864870807,0.3247692,68254.0,68250.0,0.0733]
[1729864871004,0.3608,68255.0,68244.0,0.3608]
[1729864871203,0.073249,68298.0,68244.0,0.3608]
[1729864871204,0.3608,68271.0,68254.0,0.3247692]
[1729864871503,0.3608,68278.0,68275.0,0.073272]
[1729864871709,0.3608,68278.0,68275.0,0.073273]
[1729864872413,0.3608,68282.0,68275.0,0.073273]
[1729864872613,0.3608,68289.0,68275.0,0.073273]
[1729864872911,0.073252,68295.0,68274.0,0.3247692]
[1729864873216,0.073257,68290.0,68284.0,0.073263]
[1729864873403,0.3247692,68285.0,68273.0,0.3608]
[1729864873711,0.3247692,68285.0,68277.0,0.073271]
[1729864873915,0.3247692,68291.0,68273.0,0.3608]
[1729864874119,0.3247692,68291.0,68282.0,0.073265]
[1729864874120,0.073257,68290.0,68282.0,0.073265]
[1729864874505,0.3608,68285.0,68282.0,0.073265]
[1729864874812,0.3608,68285.0,68283.0,0.073264]
[1729864875515,0.3608,68285.0,68273.0,0.3608]
[1729864875917,0.3608,68285.0,68266.0,0.146082]
[1729864875918,0.3608,68277.0,68271.0,0.073277]
[1729864876120,0.338755,68277.0,68271.0,0.073277]
[1729864876316,0.265483,68277.0,68266.0,0.0728]